bitfinex-derivatives/quotes_SOLF0:USTF0_20240923
["timestamp","ask_amount","ask_price","bid_price","bid_amount"]
[1727050699561,1.4608,142.77,142.66,30.61]
[1727050699968,4.97917319,142.77,142.68,30.61]
[1727050700473,1.4608,142.77,142.68,30.61]
[1727050700972,3.503,142.72,142.68,30.61]
[1727050701173,4.972332,142.77,142.68,30.61]
[1727050701365,4.972332,142.77,142.66,30.61]
[1727050702866,3.5036,142.69,142.66,30.61]
[1727050703265,4.972332,142.77,142.66,30.61]
[1727050703473,1.4608,142.77,142.7,30.61]
[1727050703674,1.4252,142.78,142.7,30.61]
[1727050703973,1.4252,142.78,142.7,34.1131]
[1727050704175,1.4252,142.78,142.7,30.61]
[1727050704485,1.4537,142.82,142.72,30.61]
[1727050704663,1.4537,142.82,142.75,30.61]
[1727050704971,3.5024,142.74,142.72,30.61]
[1727050705271,3.5274071,142.78,142.69,30.61]
[1727050705473,30.61,142.81,142.69,30.61]
[1727050706068,30.61,142.79,142.68,2.7065]
[1727050706271,3.5035,142.69,142.68,1.3261]
[1727050707375,3.5045,142.66,142.64,1.4072]
[1727050707580,30.61,142.74,142.63,30.61]
[1727050707769,2.8672,142.75,142.65,30.61]
[1727050708280,2.8672,142.75,142.66,3.5041]
[1727050708478,2.8672,142.75,142.65,30.61]
[1727050708782,30.61,142.81,142.7,34.1132]
[1727050708988,33.4573,142.81,142.7,30.61]
[1727050709281,33.4573,142.81,142.7,34.1131]
[1727050709587,3.5022,142.75,142.7,34.1131]
[1727050709775,3.5022,142.75,142.71,1.3813]
[1727050710081,33.4573,142.81,142.71,1.3813]
[1727050711479,3.5024,142.74,142.71,1.3813]
[1727050712279,33.4573,142.81,142.71,1.3813]
[1727050712485,1.4462,142.81,142.72,30.61]
[1727050713085,3.5015,142.78,142.74,3.5022]
[1727050715285,3.5015,142.78,142.72,30.61]
[1727050715286,4.1569,142.85,142.72,30.61]
[1727050715781,4.1569,142.85,142.71,1.3813]
[1727050715782,1.3646,142.85,142.77,30.61]
[1727050716177,1.3646,142.85,142.79,3.501]
[1727050716387,1.392,142.89,142.78,18.82]
[1727050716888,3.5002,142.83,142.79,1.4027]
[1727050717385,1.392,142.89,142.79,1.4027]
[1727050717891,3.5003,142.83,142.79,4.9036]
[1727050718080,1.392,142.89,142.79,4.9036]
[1727050718081,1.392,142.89,142.8,18.82]
[1727050718589,3.4996,142.85,142.81,3.5004]
[1727050719783,1.3447,142.91,142.83,3.5]
[1727050719977,1.3447,142.91,142.8,18.82]
[1727050720177,1.4286,142.94,142.83,18.82]
[1727050720383,1.4286,142.94,142.86,3.4992]
[1727050720582,1.4286,142.94,142.85,18.82]
[1727050720782,1.3419,142.96,142.87,3.4989]
[1727050721489,1.3419,142.96,142.87,18.82]
[1727050721681,18.82,143.02,142.9,18.82]
[1727050721682,1.4363,143.02,142.9,18.82]
[1727050721881,2.7782,143.02,142.9,18.82]
[1727050722178,3.497,142.96,142.92,3.4978]
[1727050722388,21.5982,143.02,142.9,18.82]
[1727050722586,21.5982,143.02,142.88,4.0899]
[1727050722983,2.7782,143.02,142.92,18.82]
[1727050723287,2.7782,143.02,142.93,3.4975]
[1727050723288,3.4967,142.97,142.93,3.4975]
[1727050723586,3.4967,142.97,142.88,4.0899]
[1727050723587,6.9861,143.12,142.94,18.82]
[1727050723789,4.82690478,143.07,142.96,18.82]
[1727050724089,1.3958,143.07,142.97,1.358]
[1727050724585,23.78056601,143.07,142.97,1.358]
[1727050724789,18.82,143.04,142.91,18.82]
[1727050725078,3.41186036,143.03,142.92,1.358]
[1727050725284,3.4967,142.97,142.92,4.8558]
[1727050725682,18.82,143.02,142.92,1.358]
[1727050726295,1.3958,143.07,142.92,20.178]
[1727050726485,18.82,143.02,142.92,1.358]
[1727050727287,22.30614351,143.02,142.92,1.358]
[1727050727881,3.4962,142.99,142.92,1.358]
[1727050728082,22.30614351,143.02,142.92,1.358]
[1727050729696,18.82,143.0,142.88,21.5361]
[1727050729897,2.8076,142.99,142.85,18.82]
[1727050730094,4.1776,142.99,142.85,18.82]
[1727050730387,18.82,142.97,142.85,18.82]
[1727050730586,18.82,142.97,142.83,18.82]
[1727050731186,7.6965293,142.99,142.89,18.82]
[1727050731582,2.7948,142.99,142.93,18.82]
[1727050731777,2.7948,142.99,142.91,18.82]
[1727050731989,21.6148,142.99,142.9,1.3611]
[1727050732182,1.3828,142.98,142.86,18.82]
[1727050732382,18.82,142.97,142.86,18.82]
[1727050732679,3.4978,142.93,142.86,18.82]
[1727050733083,2.7948,142.99,142.91,18.82]
[1727050733589,3.4968,142.97,142.92,1.3258]
[1727050733886,1.37,142.99,142.92,1.3258]
[1727050734196,1.3961,143.04,142.94,18.82]
[1727050734387,2.8265,143.04,142.94,18.82]
[1727050734892,3.4957,143.01,142.94,18.82]
[1727050735490,3.4957,143.01,142.92,4.8235]
[1727050735491,3.496,143.0,142.97,18.82]
[1727050735680,18.82,143.1,142.97,18.82]
[1727050735887,18.82,143.07,142.97,18.82]
[1727050736088,22.3266098,143.07,142.97,18.82]
[1727050736383,3.4954,143.03,142.97,18.82]
[1727050737192,3.4956,143.02,142.97,18.82]
[1727050737394,3.5066098,143.07,142.97,18.82]
[1727050737699,3.4958,143.01,142.97,18.82]
[1727050737887,3.58355516,143.06,142.97,18.82]
[1727050738088,18.82,143.08,142.97,18.82]
[1727050738295,3.53424018,143.07,142.97,18.82]
[1727050738590,18.82,143.1,142.97,18.82]
[1727050738790,3.4953,143.03,142.97,18.82]
[1727050738995,22.37627453,143.1,142.97,18.82]
[1727050741196,18.82,143.08,142.94,22.3174]
[1727050741381,18.82,143.08,142.94,18.82]
[1727050741782,3.4956,143.02,142.96,3.4969]
[1727050741996,3.4956,143.02,142.98,18.82]
[1727050742292,3.57322041,143.07,142.98,18.82]
[1727050742495,18.82,143.06,142.93,18.82]
[1727050742686,18.82,143.09,142.92,1.3258]
[1727050742687,18.82,143.03,142.92,1.3258]
[1727050742883,4.039,143.02,142.92,1.3258]
[1727050744084,4.039,143.02,142.89,6.3572]
[1727050744288,4.039,143.02,142.89,2.8586]
[1727050744695,3.4971,142.96,142.9,3.4982]
[1727050745491,4.039,143.02,142.93,18.82]
[1727050745887,4.039,143.02,142.95,18.82]
[1727050746088,3.57036438,143.06,142.97,18.82]
[1727050746389,4.1569,143.08,142.97,18.82]
[1727050746590,3.4957,143.01,142.97,18.82]
[1727050747098,3.42025792,143.07,142.95,1.3548]
[1727050747390,18.82,143.05,142.95,1.3548]
[1727050747598,22.32353377,143.05,142.95,1.3548]
[1727050747790,3.4968,142.97,142.95,1.3548]
[1727050747982,18.82,143.02,142.89,4.3171]
[1727050748187,2.8514,143.01,142.89,2.8938]
[1727050748386,30.6,142.98,142.89,1.4585]
[1727050748594,30.6,142.98,142.85,30.6]
[1727050748788,30.6,142.98,142.82,1.4585]
[1727050748988,30.6,142.95,142.83,30.6]
[1727050749194,1.4512,142.94,142.83,30.6]
[1727050749402,3.4991,142.88,142.83,34.1]
[1727050749599,4.99661708,142.93,142.83,30.6]
[1727050750187,30.6,142.92,142.82,1.4585]
[1727050750398,31.9288,142.92,142.82,1.4585]
[1727050750595,3.4993,142.87,142.82,4.9588]
[1727050750999,1.4119,142.93,142.85,30.6]
[1727050751401,32.0119,142.93,142.82,1.4585]
[1727050751597,3.4994,142.86,142.82,1.4585]
[1727050751797,30.6,142.91,142.78,30.6]
[1727050752002,30.6,142.88,142.76,32.0311]
[1727050752201,3.5006,142.81,142.76,35.5329]
[1727050752505,30.6,142.88,142.76,32.0311]
[1727050753803,3.5006,142.81,142.76,35.5327]
[1727050754401,3.56731217,142.86,142.76,32.0311]
[1727050754713,1.4324,142.85,142.76,1.4311]
[1727050754907,4.9941087,142.85,142.76,1.4311]
[1727050755407,3.5008,142.81,142.76,1.4311]
[1727050755796,4.9941087,142.85,142.76,1.4311]
[1727050756002,6.4383087,142.85,142.76,1.4311]
[1727050756403,30.6,142.84,142.73,30.6]
[1727050756603,30.6,142.84,142.71,30.6]
[1727050756903,30.6,142.84,142.71,34.1029]
[1727050756904,3.502,142.76,142.71,34.1029]
[1727050757106,30.6,142.81,142.69,1.4526]
[1727050757306,1.3994,142.8,142.69,1.4526]
[1727050757516,3.5024,142.74,142.7,3.5033]
[1727050758011,1.3994,142.8,142.7,3.5033]
[1727050758511,1.3994,142.8,142.69,1.4526]
[1727050758717,30.6,142.77,142.65,35.562]
[1727050759011,1.3994,142.8,142.65,35.562]
[1727050759012,30.6,142.75,142.65,1.4577]
[1727050759811,3.5037,142.69,142.65,1.4577]
[1727050760809,3.5039,142.68,142.65,1.4577]
[1727050761013,30.6,142.72,142.6,30.6]
[1727050761411,1.4001,142.71,142.6,3.5056]
[1727050761607,1.4001,142.71,142.6,30.6]
[1727050762009,3.5038,142.68,142.63,3.5049]
[1727050762314,6.3323836,142.76,142.65,30.6]
[1727050762509,2.7793,142.76,142.65,30.6]
[1727050762713,2.7793,142.76,142.67,30.6]
[1727050763019,2.7793,142.76,142.7,30.6]
[1727050763218,229.0,142.88,142.72,30.6]
[1727050763411,84.08,142.89,142.74,30.6]
[1727050763412,4.1486,142.84,142.74,30.6]
[1727050763611,3.4808579,142.83,142.75,3.5018]
[1727050763917,34.7486,142.84,142.65,1.4371]
[1727050764217,30.6,142.79,142.67,30.6]
[1727050764917,30.6,142.79,142.68,2.6905]
[1727050765618,7.70098238,142.84,142.72,30.6]
[1727050766116,7.70098238,142.84,142.74,3.5021]
[1727050766117,3.5012,142.79,142.74,3.5021]
[1727050766512,38.30098238,142.84,142.72,30.6]
[1727050766720,3.5014,142.78,142.73,3.5024]
[1727050767212,30.6,142.81,142.71,3.503]
[1727050767411,30.6,142.81,142.68,2.6905]
[1727050767412,30.6,142.81,142.68,33.2905]
[1727050767612,3.5019,142.76,142.68,33.2905]
[1727050767821,30.6,142.81,142.68,33.2905]
[1727050768317,30.6,142.81,142.72,3.5026]
[1727050768520,30.6,142.81,142.68,33.2905]
[1727050768820,3.5018,142.77,142.72,3.5026]
[1727050769221,3.5018,142.77,142.68,33.2905]
[1727050769419,3.5018,142.76,142.72,3.5027]
[1727050769607,38.30098238,142.84,142.7,30.6]
[1727050770121,38.30098238,142.84,142.73,30.6]
[1727050770620,1.3489,142.92,142.78,30.6]
[1727050770809,30.6,142.91,142.78,30.6]
[1727050771215,4.134,142.92,142.8,30.6]
[1727050771607,4.134,142.92,142.79,1.3238]
[1727050771608,84.08,142.98,142.79,1.3238]
[1727050771811,3.4982,142.91,142.83,30.6]
[1727050772616,3.4982,142.91,142.86,3.4991]
[1727050772811,3.4979,142.92,142.85,30.6]
[1727050773216,4.1285,142.97,142.85,30.6]
[1727050773217,3.44595679,142.96,142.85,30.6]
[1727050773413,30.6,142.96,142.83,30.6]
[1727050773618,34.16216377,142.96,142.85,3.4994]
[1727050774022,3.4987,142.89,142.83,30.6]
[1727050774218,3.4987,142.89,142.84,3.4996]
[1727050774618,3.499,142.88,142.83,30.6]
[1727050774814,30.6,142.94,142.83,30.6]
[1727050775220,34.16216377,142.96,142.86,3.4991]
[1727050775418,3.56216377,142.96,142.86,3.4991]
[1727050775617,4.1285,142.97,142.85,30.6]
[1727050775814,4.1285,142.97,142.85,34.0994]
[1727050776011,4.1285,142.97,142.85,30.6]
[1727050776215,7.69031375,142.97,142.85,30.6]
[1727050776611,7.69031375,142.97,142.8,1.3584]
[1727050776612,30.6,142.94,142.8,1.3584]
[1727050777019,30.6,142.94,142.83,3.5]
[1727050777523,30.6,142.94,142.8,31.9584]
[1727050777726,30.6,142.96,142.85,3.4995]
[1727050777926,7.69031375,142.97,142.85,3.4995]
[1727050778726,3.4989,142.88,142.83,30.6]
[1727050779029,30.6,142.92,142.8,31.9584]
[1727050779228,30.6,142.92,142.83,3.5]
[1727050779229,3.499,142.88,142.83,3.5]
[1727050779733,30.6,142.92,142.8,31.9584]
[1727050780318,30.6,142.92,142.64,37.621]
[1727050780319,30.6,142.92,142.75,30.6]
[1727050780525,30.6,142.87,142.75,32.0597]
[1727050780720,7.80011366,142.86,142.75,32.0597]
[1727050781025,4.2342,142.86,142.75,32.0597]
[1727050781428,3.5003,142.83,142.78,3.5012]
[1727050781633,4.2342,142.86,142.75,1.4597]
[1727050782235,3.5006,142.81,142.77,3.5015]
[1727050782830,30.6,142.82,142.72,1.3523]
[1727050783227,3.502,142.76,142.72,4.8549]
[1727050783931,3.502,142.76,142.73,3.5025]
[1727050784127,3.5016,142.78,142.72,1.3523]
[1727050784430,30.6,142.84,142.72,1.3523]
[1727050784729,30.6,142.82,142.69,30.6]
[1727050784929,30.6,142.82,142.7,3.5032]
[1727050785934,3.5022,142.75,142.7,3.5032]
[1727050787435,3.44666788,142.79,142.7,3.5032]
[1727050787436,3.5023,142.74,142.7,3.5032]
[1727050788136,3.5026,142.73,142.69,30.6]
[1727050788334,30.6,142.79,142.68,1.4427]
[1727050788637,4.1415,142.78,142.68,1.4427]
[1727050789637,3.5027,142.73,142.69,3.5034]
[1727050790626,4.1415,142.78,142.68,1.4427]
[1727050790627,30.6,142.77,142.68,1.4427]
[1727050792340,22.9915,142.78,142.68,1.4427]
[1727050792640,4.1415,142.78,142.68,20.2927]
[1727050793130,3.5022,142.75,142.68,20.2927]
[1727050793534,4.1415,142.78,142.68,1.4427]
[1727050795336,4.1415,142.78,142.69,3.5033]
[1727050796330,22.9915,142.78,142.68,1.4427]
[1727050797350,22.9915,142.78,142.68,4.9463]
[1727050797640,18.85,142.76,142.63,18.85]
[1727050797949,3.5031,142.71,142.67,3.5039]
[1727050798240,3.5023,142.75,142.65,18.85]
[1727050798443,22.9915,142.78,142.67,18.85]
[1727050798648,4.1415,142.78,142.67,18.85]
[1727050798943,4.1415,142.78,142.7,18.85]
[1727050799940,4.1415,142.78,142.72,3.5026]
[1727050800338,84.08,142.82,142.72,18.85]
[1727050800542,18.85,142.85,142.73,1.4473]
[1727050800941,3.5014,142.78,142.74,3.5021]
[1727050801841,3.42257291,142.79,142.65,18.85]
[1727050802043,2.8538,142.78,142.66,1.4473]
[1727050802250,3.4628632,142.77,142.67,18.85]
[1727050802546,2.8538,142.78,142.67,18.85]
[1727050802753,1.4537,142.78,142.7,18.85]
[1727050802943,1.352,142.79,142.7,18.85]
[1727050803145,2.8057,142.84,142.72,18.85]
[1727050804150,2.8057,142.84,142.75,3.5019]
[1727050804352,2.8057,142.84,142.72,18.85]
[1727050804746,18.85,142.82,142.72,18.85]
[1727050805453,21.6557,142.84,142.72,18.85]
[1727050806057,3.5012,142.79,142.72,18.85]
[1727050806549,3.46367542,142.79,142.69,18.85]
[1727050806749,18.85,142.82,142.69,18.85]
[1727050807646,18.85,142.82,142.72,3.5026]
[1727050808046,18.85,142.82,142.69,18.85]
[1727050808249,3.5016,142.77,142.73,3.5024]
[1727050808449,3.5016,142.77,142.69,18.85]
[1727050808753,3.5016,142.77,142.73,3.5023]
[1727050809355,3.5019,142.76,142.72,3.5027]
[1727050809557,3.5019,142.76,142.69,18.85]
[1727050809850,3.5019,142.76,142.72,3.5027]
[1727050810549,3.5021,142.75,142.69,18.85]
[1727050811055,18.85,142.82,142.69,18.85]
[1727050811251,18.85,142.82,142.71,18.85]
[1727050811652,18.85,142.82,142.72,3.5027]
[1727050811849,18.85,142.8,142.67,18.85]
[1727050812152,18.85,142.8,142.66,1.4473]
[1727050812153,18.85,142.74,142.66,1.4473]
[1727050812354,1.3718,142.73,142.63,2.7912]
[1727050812545,4.084,142.73,142.63,2.7912]
[1727050812955,1.3718,142.73,142.64,18.85]
[1727050813155,3.48332138,142.76,142.64,18.85]
[1727050813348,3.48332138,142.76,142.63,2.7912]
[1727050813349,3.5026,142.73,142.67,18.85]
[1727050813549,18.85,142.77,142.67,18.85]
[1727050813750,3.5025,142.74,142.7,3.5031]
[1727050813949,18.85,142.77,142.68,1.4098]
[1727050814150,18.85,142.77,142.64,18.85]
[1727050814351,18.85,142.77,142.64,20.2598]
[1727050814852,3.5025,142.74,142.64,20.2598]
[1727050815064,4.80787036,142.79,142.67,18.85]
[1727050815955,3.503,142.72,142.68,3.5036]
[1727050816652,18.85,142.77,142.67,18.85]
[1727050817463,18.85,142.77,142.64,20.2598]
[1727050817753,3.5027,142.73,142.69,3.5034]
[1727050818551,23.65787036,142.79,142.66,18.85]
[1727050818759,4.80787036,142.79,142.69,18.85]
[1727050818962,1.3591,142.79,142.69,18.85]
[1727050819452,3.502,142.76,142.72,3.5028]
[1727050819766,3.502,142.76,142.69,18.85]
[1727050820056,2.767,142.82,142.71,18.85]
[1727050820259,2.767,142.82,142.72,1.3421]
[1727050820649,18.85,142.81,142.72,1.3421]
[1727050821061,18.85,142.81,142.73,3.5024]
[1727050821259,18.85,142.81,142.72,1.3421]
[1727050821567,18.85,142.81,142.66,18.85]
[1727050821568,3.5025,142.74,142.71,3.503]
[1727050821860,18.85,142.79,142.67,1.4545]
[1727050821861,3.55324856,142.78,142.67,1.4545]
[1727050822061,3.55324856,142.78,142.69,18.85]
[1727050822654,2.767,142.82,142.71,18.85]
[1727050822957,3.5016,142.78,142.74,3.5021]
[1727050823763,2.767,142.82,142.73,3.5025]
[1727050823764,3.5016,142.77,142.73,3.5025]
[1727050823962,2.767,142.82,142.73,3.5025]
[1727050824357,3.5017,142.77,142.73,3.5025]
[1727050824757,3.5017,142.77,142.74,3.5022]
[1727050825159,2.767,142.82,142.71,18.85]
[1727050825363,1.322,142.86,142.76,18.85]
[1727050825670,1.3476,142.87,142.78,18.85]
[1727050825871,21.5806,142.92,142.81,18.85]
[1727050826072,1.3476,142.91,142.81,18.85]
[1727050826270,1.3476,142.91,142.81,22.3505]
[1727050826975,3.4995,142.86,142.81,22.3505]
[1727050828067,3.4989,142.88,142.81,18.85]
[1727050828268,1.3476,142.91,142.81,18.85]
[1727050828470,1.3476,142.91,142.82,1.4017]
[1727050829477,3.4989,142.88,142.84,3.4997]
[1727050829672,1.3476,142.91,142.82,1.4017]
[1727050829974,3.4991,142.88,142.83,3.5001]
[1727050830575,1.3476,142.91,142.83,3.5001]
[1727050830576,3.4991,142.87,142.83,3.5001]
[1727050830773,1.3476,142.91,142.82,1.4017]
[1727050831075,3.499,142.88,142.82,1.4017]
[1727050831584,3.4987,142.89,142.83,18.85]
[1727050831768,1.3476,142.91,142.83,18.85]
[1727050831969,84.1,142.95,142.85,18.85]
[1727050832166,2.7129,142.96,142.88,18.85]
[1727050832566,1.4352,142.98,142.9,18.85]
[1727050832978,4.85514777,143.0,142.94,3.4974]
[1727050833179,1.3972,143.02,142.92,18.85]
[1727050833372,1.4577,143.04,142.95,18.85]
[1727050834184,2.7841,143.07,142.95,18.85]
[1727050834185,4.2418,143.07,142.95,18.85]
[1727050834377,3.4952,143.03,142.95,18.85]
[1727050835084,3.4952,143.03,142.98,3.4962]
[1727050835383,3.495,143.04,142.97,18.85]
[1727050835581,3.495,143.04,142.98,1.4569]
[1727050835981,3.495,143.04,142.99,3.496]
[1727050836185,3.4947,143.06,142.98,1.4569]
[1727050836483,2.7841,143.07,142.98,1.4569]
[1727050837178,3.4947,143.05,142.98,1.4569]
[1727050837382,18.85,143.11,142.99,18.85]
[1727050837684,4.226,143.12,142.99,21.5373]
[1727050838073,3.49793635,143.11,143.01,18.85]
[1727050838278,3.4942,143.08,143.04,3.4949]
[1727050838676,3.4942,143.08,143.01,18.85]
[1727050838677,2.7662,143.12,143.01,18.85]
[1727050839382,3.494,143.08,143.01,18.85]
[1727050839690,2.7662,143.12,143.01,18.85]
[1727050840187,3.4938,143.09,143.04,3.4948]
[1727050840388,2.7662,143.12,143.04,3.4948]
[1727050840587,2.7662,143.12,143.01,18.85]
[1727050841796,21.6162,143.12,142.99,21.5373]
[1727050842085,21.6162,143.12,143.01,3.4955]
[1727050842297,2.7662,143.12,142.99,21.5373]
[1727050842476,2.7662,143.12,143.01,18.85]
[1727050842679,3.4941,143.08,143.01,18.85]
[1727050842887,2.7662,143.12,143.01,18.85]
[1727050843088,1.4598,143.17,143.04,18.85]
[1727050843391,1.4175,143.16,143.04,18.85]
[1727050843594,18.85,143.15,143.04,18.85]
[1727050843791,18.85,143.15,143.02,18.85]
[1727050845506,18.85,143.15,143.04,3.4949]
[1727050846401,3.4941,143.08,143.03,3.4951]
[1727050846797,3.4941,143.08,143.02,18.85]
[1727050847097,3.4941,143.08,143.04,3.4948]
[1727050847496,3.4939,143.09,143.04,18.85]
[1727050847694,3.4939,143.09,143.05,3.4945]
[1727050847899,3.4939,143.09,143.04,18.85]
[1727050848305,18.85,143.15,143.04,18.85]
[1727050848306,3.494,143.08,143.04,18.85]
[1727050848502,18.85,143.15,143.04,18.85]
[1727050848802,18.85,143.1,142.99,2.6873]
[1727050848996,3.9969,143.09,142.99,2.6873]
[1727050849203,18.85,143.08,142.99,2.6873]
[1727050849411,18.85,143.08,142.99,1.3293]
[1727050850404,3.4956,143.02,142.99,1.3293]
[1727050850793,18.85,143.06,142.95,1.4501]
[1727050850995,3.4965,142.98,142.95,1.4501]
[1727050851400,18.85,143.04,142.92,18.85]
[1727050851704,18.85,143.04,142.93,3.4975]
[1727050851912,18.85,143.04,142.91,1.3755]
[1727050852204,18.85,143.01,142.89,20.2449]
[1727050852394,18.85,143.03,142.91,18.85]
[1727050852700,18.85,143.05,142.94,3.4972]
[1727050852898,18.85,143.05,142.91,18.85]
[1727050853400,18.85,143.05,142.94,3.4974]
[1727050853700,18.85,143.05,142.91,18.85]
[1727050853892,3.4967,142.97,142.91,22.348]
[1727050854096,18.85,143.03,142.91,18.85]
[1727050854295,33.36781427,143.09,142.9,1.3755]
[1727050854296,18.85,143.01,142.9,1.3755]
[1727050854596,1.3224,143.0,142.89,20.2449]
[1727050855400,1.3224,143.0,142.89,23.7435]
[1727050855590,1.3224,143.0,142.89,20.2449]
[1727050855796,2.6699,143.02,142.91,18.85]
[1727050856302,3.4974,142.95,142.91,18.85]
[1727050856607,2.6699,143.02,142.91,18.85]
[1727050856802,2.6699,143.02,142.9,3.4982]
[1727050856803,3.4974,142.94,142.9,3.4982]
[1727050857303,3.4974,142.94,142.91,18.85]
[1727050857505,2.6699,143.02,142.91,22.348]
[1727050857895,2.6699,143.02,142.91,18.85]
[1727050858192,2.6699,143.02,142.92,3.4978]
[1727050858395,3.4967,142.97,142.93,18.85]
[1727050858591,2.6699,143.02,142.94,3.4972]
[1727050859296,1.338,143.02,142.95,18.85]
[1727050859803,2.7408,143.07,142.95,22.347]
[1727050860394,3.4966,142.98,142.95,18.85]
[1727050860605,2.7408,143.07,142.95,18.85]
[1727050860995,2.7408,143.07,142.89,1.3949]
[1727050860996,3.4968,142.97,142.93,22.3475]
[1727050861193,3.49065992,143.01,142.93,18.85]
[1727050861399,18.85,143.05,142.93,18.85]
[1727050861601,3.4971,142.96,142.93,18.85]
[1727050861799,18.85,143.05,142.93,18.85]
[1727050862395,2.7408,143.07,142.95,18.85]
[1727050862705,2.7408,143.07,142.99,3.4962]
[1727050862897,1.3984,143.07,142.98,18.85]
[1727050863202,3.4952,143.03,142.99,4.9165]
[1727050863703,1.3984,143.07,142.99,1.4204]
[1727050864000,20.1807,143.14,143.01,18.85]
[1727050864204,21.5382,143.14,143.01,18.85]
[1727050864398,21.5382,143.14,143.02,3.4954]
[1727050864603,21.5382,143.14,143.01,18.85]
[1727050864906,3.4948,143.05,143.01,22.3456]
[1727050865509,22.28993884,143.09,142.99,2.8832]
[1727050865804,18.85,143.09,142.99,2.8832]
[1727050866007,3.4951,143.04,143.0,3.4959]
[1727050866208,3.4798606,143.09,143.01,18.85]
[1727050866506,3.4948,143.05,143.01,22.3455]
[1727050867005,18.85,143.12,143.02,3.4954]
[1727050867205,21.5382,143.14,143.03,18.85]
[1727050867800,2.6882,143.14,143.04,3.4948]
[1727050868192,2.6882,143.14,143.03,18.85]
[1727050868893,3.4942,143.08,143.03,22.3452]
[1727050869099,18.85,143.12,143.0,18.85]
[1727050869509,18.85,143.12,143.03,3.4952]
[1727050869705,3.4939,143.09,143.03,18.85]
[1727050870007,2.6882,143.14,143.03,18.85]
[1727050870205,2.6882,143.14,143.06,3.4945]
[1727050871906,2.6882,143.14,143.04,1.4548]
[1727050872299,3.4941,143.08,143.04,1.4548]
[1727050872500,2.6882,143.14,143.04,1.4548]
[1727050873005,3.4938,143.09,143.05,3.4947]
[1727050873509,3.4935,143.1,143.05,3.4947]
[1727050873807,2.6882,143.14,143.04,1.4548]
[1727050874200,2.6882,143.14,143.05,18.85]
[1727050874510,3.49930038,143.17,143.05,18.85]
[1727050874803,1.4561,143.18,143.06,2.7762]
[1727050874994,3.49122638,143.17,143.06,2.7762]
[1727050875199,3.4932,143.12,143.08,3.494]
[1727050875807,3.4929,143.13,143.06,2.7762]
[1727050876000,4.92226904,143.18,143.06,2.7762]
[1727050876302,3.4929,143.13,143.09,3.4937]
[1727050876698,3.4929,143.13,143.08,18.85]
[1727050876699,4.92226904,143.18,143.08,18.85]
[1727050876903,3.4932,143.12,143.08,22.3439]
[1727050877109,4.92226904,143.18,143.06,21.6262]
[1727050877498,18.85,143.16,143.04,1.4548]
[1727050877703,18.85,143.14,143.04,1.4548]
[1727050878003,18.85,143.16,143.06,3.4944]